[Event "Titled Tuesday Blitz February 15 Early 2022"]
[White "Corrales Jimenez, Fidel"]
[Black "Grischuk, Alexander"]
[WhiteFideId "3506690"]
[BlackFideId "4126025"]
[WhiteElo "2541"]
[BlackElo "2762"]
[Result "0-1"]
[Round "06"]
[TimeControl "180+1"]
[Date "2022.02.15"]
[WhiteClock "0:00:03"]
[BlackClock "0:00:10"]

1. d4 {[%clk 0:01:55]}  e6 {[%clk 0:02:59]} 2. c4 {[%clk 0:01:55]}  b6 {[%clk 0:02:59]} 3. Nc3 {[%clk 0:01:55]}  Bb7 {[%clk 0:02:59]} 4. e4 {[%clk 0:01:55]}  Bb4 {[%clk 0:02:58]} 5. Bd3 {[%clk 0:01:54]}  f5 {[%clk 0:02:56]} 6. d5 {[%clk 0:01:42]}  fxe4 {[%clk 0:02:27]} 7. Bxe4 {[%clk 0:01:42]}  Qh4 {[%clk 0:02:26]} 8. Qe2 {[%clk 0:01:07]}  Nf6 {[%clk 0:02:24]} 9. Bf3 {[%clk 0:01:07]}  O-O {[%clk 0:02:17]} 10. dxe6 {[%clk 0:01:07]}  Nc6 {[%clk 0:02:16]} 11. Be3 {[%clk 0:01:02]}  Ne4 {[%clk 0:01:42]} 12. g3 {[%clk 0:00:37]}  Nxc3 {[%clk 0:01:41]} 13. gxh4 {[%clk 0:00:35]}  Nxe2+ {[%clk 0:01:41]} 14. Kxe2 {[%clk 0:00:36]}  dxe6 {[%clk 0:01:41]} 15. a3 {[%clk 0:00:32]}  Bd6 {[%clk 0:01:36]} 16. b4 {[%clk 0:00:31]}  Rf5 {[%clk 0:01:26]} 17. Be4 {[%clk 0:00:26]}  Nd4+ {[%clk 0:01:26]} 18. Kd3 {[%clk 0:00:23]}  Bxe4+ {[%clk 0:01:20]} 19. Kxe4 {[%clk 0:00:24]}  Nc2 {[%clk 0:01:00]} 20. Ra2 {[%clk 0:00:21]}  Nxe3 {[%clk 0:00:59]} 21. fxe3 {[%clk 0:00:22]}  a5 {[%clk 0:00:58]} 22. bxa5 {[%clk 0:00:18]}  Re5+ {[%clk 0:00:52]} 23. Kd3 {[%clk 0:00:18]}  Bc5 {[%clk 0:00:43]} 24. Re2 {[%clk 0:00:14]}  Rxa5 {[%clk 0:00:42]} 25. Nf3 {[%clk 0:00:11]}  Rxa3+ {[%clk 0:00:42]} 26. Kc2 {[%clk 0:00:12]}  Ra2+ {[%clk 0:00:41]} 27. Kd3 {[%clk 0:00:10]}  Rxe2 {[%clk 0:00:40]} 28. Kxe2 {[%clk 0:00:10]}  Rxe3+ {[%clk 0:00:41]} 29. Kf2 {[%clk 0:00:11]}  Rc3+ {[%clk 0:00:32]} 30. Kg3 {[%clk 0:00:11]}  Bd6+ {[%clk 0:00:27]} 31. Kg2 {[%clk 0:00:09]}  Rc2+ {[%clk 0:00:26]} 32. Kh3 {[%clk 0:00:09]}  Rxc4 {[%clk 0:00:27]} 33. Re1 {[%clk 0:00:09]}  e5 {[%clk 0:00:23]} 34. h5 {[%clk 0:00:08]}  h6 {[%clk 0:00:20]} 35. Nh4 {[%clk 0:00:08]}  Be7 {[%clk 0:00:17]} 36. Ng6 {[%clk 0:00:07]}  Bf6 {[%clk 0:00:17]} 37. Rd1 {[%clk 0:00:04]}  Kf7 {[%clk 0:00:17]} 38. Kg3 {[%clk 0:00:04]}  b5 {[%clk 0:00:16]} 39. h4 {[%clk 0:00:05]}  b4 {[%clk 0:00:16]} 40. Rd5 {[%clk 0:00:04]}  Ke6 {[%clk 0:00:13]} 41. Rb5 {[%clk 0:00:05]}  c6 {[%clk 0:00:12]} 42. Rb7 {[%clk 0:00:05]}  Kd5 {[%clk 0:00:11]} 43. Nf8 {[%clk 0:00:05]}  c5 {[%clk 0:00:10]} 44. Rb8 {[%clk 0:00:04]}  e4 {[%clk 0:00:10]} 45. Nd7 {[%clk 0:00:04]}  Be5+ {[%clk 0:00:09]} 46. Nxe5 {[%clk 0:00:03]}  Kxe5 {[%clk 0:00:10]} 0-1


[Site "https://www.chess.com"]

[Event "Titled Tuesday Blitz February 15 Early 2022"]
[White "Danaci, Ege"]
[Black "Dew, Brian"]
[WhiteFideId "34506748"]
[BlackFideId "6000495"]
[WhiteElo "1799"]
[BlackElo "2118"]
[Result "1-0"]
[Round "06"]
[TimeControl "180+1"]
[Date "2022.02.15"]
[WhiteClock "0:00:06"]
[BlackClock "0:00:01"]

1. e4 {[%clk 0:03:00]}  e5 {[%clk 0:02:57]} 2. Nf3 {[%clk 0:03:00]}  Nc6 {[%clk 0:02:57]} 3. d4 {[%clk 0:03:01]}  exd4 {[%clk 0:02:56]} 4. Nxd4 {[%clk 0:03:02]}  Bc5 {[%clk 0:02:56]} 5. Nb3 {[%clk 0:03:01]}  Bb6 {[%clk 0:02:55]} 6. Nc3 {[%clk 0:03:02]}  d6 {[%clk 0:02:54]} 7. Qe2 {[%clk 0:03:02]}  Nge7 {[%clk 0:02:44]} 8. Be3 {[%clk 0:03:02]}  O-O {[%clk 0:02:43]} 9. O-O-O {[%clk 0:03:02]}  f5 {[%clk 0:02:40]} 10. f4 {[%clk 0:03:02]}  fxe4 {[%clk 0:02:39]} 11. g3 {[%clk 0:03:01]}  Bg4 {[%clk 0:02:34]} 12. Qxg4 {[%clk 0:02:56]}  Bxe3+ {[%clk 0:02:34]} 13. Kb1 {[%clk 0:02:57]}  Nf5 {[%clk 0:01:57]} 14. Bc4+ {[%clk 0:02:48]}  Kh8 {[%clk 0:01:53]} 15. Nxe4 {[%clk 0:02:49]}  Bb6 {[%clk 0:01:48]} 16. Ng5 {[%clk 0:02:39]}  Qf6 {[%clk 0:01:45]} 17. Qh5 {[%clk 0:02:17]}  h6 {[%clk 0:01:43]} 18. Nf7+ {[%clk 0:02:15]}  Kh7 {[%clk 0:01:37]} 19. g4 {[%clk 0:01:40]}  g6 {[%clk 0:01:23]} 20. Qh3 {[%clk 0:01:37]}  Qh4 {[%clk 0:01:08]} 21. Qxh4 {[%clk 0:00:49]}  Nxh4 {[%clk 0:01:09]} 22. g5 {[%clk 0:00:50]}  h5 {[%clk 0:00:59]} 23. Rhf1 {[%clk 0:00:17]}  Kg7 {[%clk 0:00:58]} 24. Nh6 {[%clk 0:00:17]}  Rae8 {[%clk 0:00:58]} 25. f5 {[%clk 0:00:17]}  gxf5 {[%clk 0:00:49]} 26. Rf4 {[%clk 0:00:10]}  Re4 {[%clk 0:00:44]} 27. Rdf1 {[%clk 0:00:08]}  Rxf4 {[%clk 0:00:37]} 28. Rxf4 {[%clk 0:00:07]}  Ng2 {[%clk 0:00:27]} 29. Nxf5+ {[%clk 0:00:07]}  Kh7 {[%clk 0:00:11]} 30. g6+ {[%clk 0:00:07]}  Kxg6 {[%clk 0:00:03]} 31. Nh4+ {[%clk 0:00:07]}  Nxh4 {[%clk 0:00:03]} 32. Rxf8 {[%clk 0:00:07]}  Nf5 {[%clk 0:00:01]} 33. Bd3 {[%clk 0:00:06]} 1-0


[Site "https://www.chess.com"]

[Event "Titled Tuesday Blitz February 15 Early 2022"]
[White "Davtyan, Artur"]
[Black "Ozkan, Taha"]
[WhiteFideId "13308327"]
[BlackFideId "34577173"]
[WhiteElo "2311"]
[BlackElo "2024"]
[Result "0-1"]
[Round "06"]
[TimeControl "180+1"]
[Date "2022.02.15"]
[WhiteClock "0:00:03"]
[BlackClock "0:00:19"]

1. d4 {[%clk 0:03:00]}  d5 {[%clk 0:02:55]} 2. c4 {[%clk 0:03:01]}  c6 {[%clk 0:02:55]} 3. Nc3 {[%clk 0:03:01]}  dxc4 {[%clk 0:02:55]} 4. Nf3 {[%clk 0:03:01]}  e6 {[%clk 0:02:54]} 5. a4 {[%clk 0:02:58]}  Bb4 {[%clk 0:02:54]} 6. e3 {[%clk 0:02:52]}  b5 {[%clk 0:02:54]} 7. Bd2 {[%clk 0:02:52]}  a5 {[%clk 0:02:54]} 8. axb5 {[%clk 0:02:46]}  Bxc3 {[%clk 0:02:52]} 9. Bxc3 {[%clk 0:02:44]}  cxb5 {[%clk 0:02:53]} 10. b3 {[%clk 0:02:45]}  Bb7 {[%clk 0:02:53]} 11. bxc4 {[%clk 0:02:46]}  b4 {[%clk 0:02:54]} 12. Bd2 {[%clk 0:02:46]}  Nf6 {[%clk 0:02:54]} 13. Bd3 {[%clk 0:02:46]}  O-O {[%clk 0:02:54]} 14. O-O {[%clk 0:02:46]}  Nbd7 {[%clk 0:02:53]} 15. Qc2 {[%clk 0:02:44]}  Qc7 {[%clk 0:02:52]} 16. Rfc1 {[%clk 0:02:33]}  Rfb8 {[%clk 0:02:48]} 17. c5 {[%clk 0:02:32]}  Bc6 {[%clk 0:02:48]} 18. Rcb1 {[%clk 0:02:28]}  h6 {[%clk 0:02:21]} 19. e4 {[%clk 0:02:27]}  Bb7 {[%clk 0:02:16]} 20. h3 {[%clk 0:02:06]}  e5 {[%clk 0:02:15]} 21. Be3 {[%clk 0:02:07]}  exd4 {[%clk 0:02:08]} 22. Bxd4 {[%clk 0:02:08]}  Bc6 {[%clk 0:02:05]} 23. e5 {[%clk 0:01:29]}  Nd5 {[%clk 0:01:55]} 24. Bf5 {[%clk 0:00:23]}  Nf8 {[%clk 0:01:41]} 25. e6 {[%clk 0:00:16]}  fxe6 {[%clk 0:01:39]} 26. Be5 {[%clk 0:00:16]}  Qb7 {[%clk 0:01:33]} 27. Bxb8 {[%clk 0:00:16]}  Qxb8 {[%clk 0:01:34]} 28. Nd4 {[%clk 0:00:15]}  exf5 {[%clk 0:01:02]} 29. Nxc6 {[%clk 0:00:14]}  Qc7 {[%clk 0:01:02]} 30. Nd4 {[%clk 0:00:14]}  Nc3 {[%clk 0:01:02]} 31. Re1 {[%clk 0:00:13]}  Qxc5 {[%clk 0:01:00]} 32. Nxf5 {[%clk 0:00:11]}  a4 {[%clk 0:00:57]} 33. Re7 {[%clk 0:00:06]}  Ra7 {[%clk 0:00:49]} 34. Rxa7 {[%clk 0:00:04]}  Qxa7 {[%clk 0:00:49]} 35. Qd2 {[%clk 0:00:03]}  Qf7 {[%clk 0:00:47]} 36. Nd6 {[%clk 0:00:02]}  Qe6 {[%clk 0:00:41]} 37. Re1 {[%clk 0:00:02]}  Qd7 {[%clk 0:00:40]} 38. Qf4 {[%clk 0:00:02]}  b3 {[%clk 0:00:34]} 39. Nf5 {[%clk 0:00:02]}  Ne2+ {[%clk 0:00:23]} 40. Rxe2 {[%clk 0:00:02]}  Qd1+ {[%clk 0:00:23]} 41. Kh2 {[%clk 0:00:02]}  Qxe2 {[%clk 0:00:24]} 42. Qg3 {[%clk 0:00:03]}  Ne6 {[%clk 0:00:20]} 43. Nxh6+ {[%clk 0:00:04]}  Kf8 {[%clk 0:00:19]} 44. Ng4 {[%clk 0:00:04]}  Qe4 {[%clk 0:00:18]} 45. Qd6+ {[%clk 0:00:04]}  Kf7 {[%clk 0:00:17]} 46. Ne5+ {[%clk 0:00:04]}  Kf6 {[%clk 0:00:17]} 47. Nd7+ {[%clk 0:00:04]}  Kg6 {[%clk 0:00:18]} 48. Ne5+ {[%clk 0:00:04]}  Kh7 {[%clk 0:00:18]} 49. Qxe6 {[%clk 0:00:04]}  Qf4+ {[%clk 0:00:18]} 50. Kg1 {[%clk 0:00:04]}  b2 {[%clk 0:00:18]} 51. Qa2 {[%clk 0:00:04]}  Qc1+ {[%clk 0:00:18]} 52. Kh2 {[%clk 0:00:04]}  b1=Q {[%clk 0:00:18]} 53. Qe6 {[%clk 0:00:03]}  Qf4+ {[%clk 0:00:18]} 54. g3 {[%clk 0:00:03]}  Qxf2# {[%clk 0:00:19]} 0-1


[Site "https://www.chess.com"]

[Event "Titled Tuesday Blitz February 15 Early 2022"]
[White "De Souza Sa, Apolo"]
[Black "Cori T., Deysi"]
[WhiteFideId "324225390"]
[BlackFideId "3801934"]
[WhiteElo "1828"]
[BlackElo "2350"]
[Result "0-1"]
[Round "06"]
[TimeControl "180+1"]
[Date "2022.02.15"]
[WhiteClock "0:00:11"]
[BlackClock "0:01:04"]

1. d4 {[%clk 0:03:00]}  g6 {[%clk 0:02:59]} 2. c4 {[%clk 0:03:01]}  Bg7 {[%clk 0:02:58]} 3. f3 {[%clk 0:03:00]}  f5 {[%clk 0:02:58]} 4. Nc3 {[%clk 0:02:59]}  d6 {[%clk 0:02:58]} 5. e4 {[%clk 0:02:59]}  Nf6 {[%clk 0:02:56]} 6. Bd3 {[%clk 0:02:56]}  fxe4 {[%clk 0:02:54]} 7. fxe4 {[%clk 0:02:56]}  e5 {[%clk 0:02:52]} 8. d5 {[%clk 0:02:54]}  Na6 {[%clk 0:02:51]} 9. Nf3 {[%clk 0:02:50]}  Nc5 {[%clk 0:02:51]} 10. Bc2 {[%clk 0:02:43]}  a5 {[%clk 0:02:50]} 11. O-O {[%clk 0:02:43]}  O-O {[%clk 0:02:50]} 12. b3 {[%clk 0:02:39]}  Nh5 {[%clk 0:02:47]} 13. Bg5 {[%clk 0:02:27]}  Qe8 {[%clk 0:02:44]} 14. a3 {[%clk 0:02:26]}  Bg4 {[%clk 0:02:41]} 15. b4 {[%clk 0:02:21]}  axb4 {[%clk 0:02:41]} 16. axb4 {[%clk 0:02:20]}  Rxa1 {[%clk 0:02:41]} 17. Qxa1 {[%clk 0:02:16]}  Na6 {[%clk 0:02:37]} 18. Na2 {[%clk 0:01:57]}  Bxf3 {[%clk 0:02:35]} 19. Rxf3 {[%clk 0:01:58]}  Rxf3 {[%clk 0:02:35]} 20. gxf3 {[%clk 0:01:59]}  Qf7 {[%clk 0:02:34]} 21. Qc3 {[%clk 0:01:51]}  Nf4 {[%clk 0:02:33]} 22. Bxf4 {[%clk 0:01:45]}  Qxf4 {[%clk 0:02:33]} 23. c5 {[%clk 0:01:41]}  dxc5 {[%clk 0:02:28]} 24. bxc5 {[%clk 0:01:40]}  Bf8 {[%clk 0:02:29]} 25. c6 {[%clk 0:01:33]}  Bc5+ {[%clk 0:02:28]} 26. Kg2 {[%clk 0:01:23]}  Qg5+ {[%clk 0:02:27]} 27. Kh3 {[%clk 0:01:20]}  b5 {[%clk 0:01:41]} 28. Bd3 {[%clk 0:00:50]}  b4 {[%clk 0:01:32]} 29. Qc4 {[%clk 0:00:38]}  Qe3 {[%clk 0:01:31]} 30. Be2 {[%clk 0:00:31]}  b3 {[%clk 0:01:29]} 31. d6+ {[%clk 0:00:26]}  Kg7 {[%clk 0:01:29]} 32. d7 {[%clk 0:00:22]}  Qh6+ {[%clk 0:01:29]} 33. Kg2 {[%clk 0:00:21]}  Qg5+ {[%clk 0:01:29]} 34. Kh3 {[%clk 0:00:20]}  bxa2 {[%clk 0:01:29]} 35. Qxa6 {[%clk 0:00:17]}  Qd2 {[%clk 0:01:26]} 36. Qc4 {[%clk 0:00:17]}  a1=Q {[%clk 0:01:24]} 37. Qxc5 {[%clk 0:00:13]}  Qh6+ {[%clk 0:01:11]} 38. Kg2 {[%clk 0:00:13]}  Qg5+ {[%clk 0:01:11]} 39. Kh3 {[%clk 0:00:13]}  Qe1 {[%clk 0:01:05]} 40. d8=Q {[%clk 0:00:11]}  Qeh4# {[%clk 0:01:04]} 0-1


[Site "https://www.chess.com"]

[Event "Titled Tuesday Blitz February 15 Early 2022"]
[White "Deac, Bogdan-Daniel"]
[Black "Williams, Simon K"]
[WhiteFideId "1226380"]
[BlackFideId "404454"]
[WhiteElo "2646"]
[BlackElo "2468"]
[Result "1-0"]
[Round "06"]
[TimeControl "180+1"]
[Date "2022.02.15"]
[WhiteClock "0:00:35"]
[BlackClock "0:00:03"]

1. e4 {[%clk 0:03:00]}  d6 {[%clk 0:02:57]} 2. d4 {[%clk 0:03:00]}  Nf6 {[%clk 0:02:57]} 3. Nc3 {[%clk 0:03:01]}  Nbd7 {[%clk 0:02:58]} 4. Nf3 {[%clk 0:02:59]}  e5 {[%clk 0:02:57]} 5. Rg1 {[%clk 0:02:59]}  c6 {[%clk 0:02:47]} 6. a4 {[%clk 0:02:58]}  exd4 {[%clk 0:02:44]} 7. Nxd4 {[%clk 0:02:56]}  d5 {[%clk 0:02:45]} 8. exd5 {[%clk 0:02:53]}  cxd5 {[%clk 0:02:35]} 9. Qe2+ {[%clk 0:02:53]}  Be7 {[%clk 0:02:09]} 10. Nf5 {[%clk 0:02:52]}  Kf8 {[%clk 0:01:30]} 11. Nxe7 {[%clk 0:02:43]}  Qxe7 {[%clk 0:01:30]} 12. Qxe7+ {[%clk 0:02:43]}  Kxe7 {[%clk 0:01:30]} 13. Bg5 {[%clk 0:02:44]}  Nb6 {[%clk 0:01:25]} 14. a5 {[%clk 0:02:27]}  Nd7 {[%clk 0:01:18]} 15. Nxd5+ {[%clk 0:02:24]}  Kf8 {[%clk 0:01:17]} 16. O-O-O {[%clk 0:02:18]}  h6 {[%clk 0:01:16]} 17. Bf4 {[%clk 0:02:08]}  g5 {[%clk 0:01:12]} 18. Nxf6 {[%clk 0:01:24]}  Nxf6 {[%clk 0:01:02]} 19. Be5 {[%clk 0:01:24]}  Kg7 {[%clk 0:00:57]} 20. Bc4 {[%clk 0:01:24]}  Re8 {[%clk 0:00:55]} 21. Rge1 {[%clk 0:01:23]}  Be6 {[%clk 0:00:53]} 22. Bb5 {[%clk 0:01:18]}  Red8 {[%clk 0:00:50]} 23. f3 {[%clk 0:01:12]}  Kg6 {[%clk 0:00:48]} 24. g4 {[%clk 0:01:09]}  Nd5 {[%clk 0:00:26]} 25. Bd3+ {[%clk 0:01:03]}  f5 {[%clk 0:00:26]} 26. Bd4 {[%clk 0:01:01]}  Kf7 {[%clk 0:00:18]} 27. gxf5 {[%clk 0:01:00]}  Bd7 {[%clk 0:00:17]} 28. Re5 {[%clk 0:00:53]}  Bc6 {[%clk 0:00:16]} 29. Bc4 {[%clk 0:00:53]}  Rd7 {[%clk 0:00:06]} 30. h4 {[%clk 0:00:46]}  Rad8 {[%clk 0:00:04]} 31. hxg5 {[%clk 0:00:45]}  hxg5 {[%clk 0:00:04]} 32. Rh1 {[%clk 0:00:46]}  Kg8 {[%clk 0:00:03]} 33. Re6 {[%clk 0:00:35]} 1-0


[Site "https://www.chess.com"]

[Event "Titled Tuesday Blitz February 15 Early 2022"]
[White "Demchenko, Anton"]
[Black "Manukyan, Artyom"]
[WhiteFideId "4160258"]
[BlackFideId "13305786"]
[WhiteElo "2539"]
[BlackElo "2034"]
[Result "1-0"]
[Round "06"]
[TimeControl "180+1"]
[Date "2022.02.15"]
[WhiteClock "0:02:20"]
[BlackClock "0:00:32"]

1. e4 {[%clk 0:03:00]}  e5 {[%clk 0:02:54]} 2. Nf3 {[%clk 0:03:00]}  Nc6 {[%clk 0:02:54]} 3. Bc4 {[%clk 0:03:01]}  Bc5 {[%clk 0:02:52]} 4. d3 {[%clk 0:03:01]}  Nf6 {[%clk 0:02:52]} 5. a4 {[%clk 0:03:02]}  a6 {[%clk 0:02:51]} 6. O-O {[%clk 0:03:01]}  d6 {[%clk 0:02:52]} 7. c3 {[%clk 0:02:58]}  Ba7 {[%clk 0:02:52]} 8. a5 {[%clk 0:02:58]}  h6 {[%clk 0:02:49]} 9. Be3 {[%clk 0:02:57]}  O-O {[%clk 0:02:49]} 10. h3 {[%clk 0:02:57]}  Re8 {[%clk 0:02:47]} 11. Qb3 {[%clk 0:02:54]}  Qe7 {[%clk 0:02:23]} 12. Nbd2 {[%clk 0:02:54]}  Nd7 {[%clk 0:02:00]} 13. Bxa7 {[%clk 0:02:45]}  Rxa7 {[%clk 0:01:58]} 14. d4 {[%clk 0:02:46]}  Nf6 {[%clk 0:01:48]} 15. Rfe1 {[%clk 0:02:46]}  Qf8 {[%clk 0:01:28]} 16. Bd3 {[%clk 0:02:38]}  Nh5 {[%clk 0:01:23]} 17. Nf1 {[%clk 0:02:28]}  Nf4 {[%clk 0:01:21]} 18. Bc2 {[%clk 0:02:29]}  Qe7 {[%clk 0:01:13]} 19. Ng3 {[%clk 0:02:27]}  Ra8 {[%clk 0:01:06]} 20. d5 {[%clk 0:02:27]}  Nd8 {[%clk 0:01:03]} 21. c4 {[%clk 0:02:24]}  Rf8 {[%clk 0:00:59]} 22. Qe3 {[%clk 0:02:20]}  Bd7 {[%clk 0:00:42]} 23. b4 {[%clk 0:02:20]}  Kh8 {[%clk 0:00:34]} 24. c5 {[%clk 0:02:19]}  g6 {[%clk 0:00:33]} 25. Rac1 {[%clk 0:02:19]}  f5 {[%clk 0:00:31]} 26. exf5 {[%clk 0:02:19]}  gxf5 {[%clk 0:00:32]} 27. Qxf4 {[%clk 0:02:20]} 1-0


[Site "https://www.chess.com"]

[Event "Titled Tuesday Blitz February 15 Early 2022"]
[White "Dilmukhametov, Artur"]
[Black "Osiecki, Stanislaw"]
[WhiteFideId "24179922"]
[BlackFideId "1102990"]
[WhiteElo "2266"]
[BlackElo "2127"]
[Result "0-1"]
[Round "06"]
[TimeControl "180+1"]
[Date "2022.02.15"]
[WhiteClock "0:00:04"]
[BlackClock "0:00:16"]

1. d4 {[%clk 0:03:00]}  Nf6 {[%clk 0:02:58]} 2. c4 {[%clk 0:02:59]}  g6 {[%clk 0:02:58]} 3. Nc3 {[%clk 0:02:58]}  Bg7 {[%clk 0:02:58]} 4. e4 {[%clk 0:02:55]}  d6 {[%clk 0:02:58]} 5. Nf3 {[%clk 0:02:54]}  O-O {[%clk 0:02:58]} 6. Be2 {[%clk 0:02:51]}  e5 {[%clk 0:02:59]} 7. d5 {[%clk 0:02:50]}  a5 {[%clk 0:02:58]} 8. O-O {[%clk 0:02:44]}  Na6 {[%clk 0:02:58]} 9. a3 {[%clk 0:02:39]}  Nc5 {[%clk 0:02:57]} 10. Qc2 {[%clk 0:02:31]}  a4 {[%clk 0:02:56]} 11. Rb1 {[%clk 0:02:26]}  Bg4 {[%clk 0:02:53]} 12. h3 {[%clk 0:02:24]}  Bxf3 {[%clk 0:02:51]} 13. Bxf3 {[%clk 0:02:23]}  Qd7 {[%clk 0:02:38]} 14. Be3 {[%clk 0:02:21]}  Nb3 {[%clk 0:02:38]} 15. Be2 {[%clk 0:02:02]}  Nd4 {[%clk 0:02:34]} 16. Bxd4 {[%clk 0:01:59]}  exd4 {[%clk 0:02:34]} 17. Nd1 {[%clk 0:01:56]}  Rfe8 {[%clk 0:02:29]} 18. Bf3 {[%clk 0:01:52]}  c5 {[%clk 0:02:27]} 19. Re1 {[%clk 0:01:49]}  Qe7 {[%clk 0:02:23]} 20. Qd3 {[%clk 0:01:46]}  Nd7 {[%clk 0:02:20]} 21. b3 {[%clk 0:01:43]}  Ne5 {[%clk 0:02:19]} 22. Qc2 {[%clk 0:01:38]}  Nxf3+ {[%clk 0:02:19]} 23. gxf3 {[%clk 0:01:37]}  Qh4 {[%clk 0:02:15]} 24. bxa4 {[%clk 0:01:32]}  Qxh3 {[%clk 0:02:14]} 25. Rxb7 {[%clk 0:01:22]}  Be5 {[%clk 0:02:12]} 26. f4 {[%clk 0:01:08]}  Bxf4 {[%clk 0:02:04]} 27. f3 {[%clk 0:01:05]}  Qg3+ {[%clk 0:01:24]} 28. Kf1 {[%clk 0:00:44]}  Qxf3+ {[%clk 0:01:20]} 29. Qf2 {[%clk 0:00:40]}  Qh1+ {[%clk 0:01:02]} 30. Qg1 {[%clk 0:00:28]}  Qxg1+ {[%clk 0:00:39]} 31. Kxg1 {[%clk 0:00:25]}  Rxa4 {[%clk 0:00:39]} 32. Nf2 {[%clk 0:00:20]}  Be3 {[%clk 0:00:37]} 33. Kg2 {[%clk 0:00:18]}  Bxf2 {[%clk 0:00:36]} 34. Kxf2 {[%clk 0:00:18]}  Rxa3 {[%clk 0:00:32]} 35. Rb6 {[%clk 0:00:17]}  Rd8 {[%clk 0:00:32]} 36. Re2 {[%clk 0:00:14]}  Rc3 {[%clk 0:00:31]} 37. Rc6 {[%clk 0:00:13]}  Rxc4 {[%clk 0:00:29]} 38. e5 {[%clk 0:00:13]}  dxe5 {[%clk 0:00:27]} 39. Rxe5 {[%clk 0:00:11]}  Rc2+ {[%clk 0:00:25]} 40. Kf3 {[%clk 0:00:11]}  d3 {[%clk 0:00:25]} 41. Re1 {[%clk 0:00:10]}  Rxd5 {[%clk 0:00:22]} 42. Rd1 {[%clk 0:00:06]}  d2 {[%clk 0:00:20]} 43. Rc8+ {[%clk 0:00:05]}  Kg7 {[%clk 0:00:19]} 44. Re8 {[%clk 0:00:03]}  Rc1 {[%clk 0:00:19]} 45. Re2 {[%clk 0:00:03]}  Rxd1 {[%clk 0:00:17]} 46. Kf2 {[%clk 0:00:01]}  Re1 {[%clk 0:00:17]} 47. Rxe1 {[%clk 0:00:01]}  dxe1=Q+ {[%clk 0:00:17]} 48. Kxe1 {[%clk 0:00:02]}  c4 {[%clk 0:00:17]} 49. Ke2 {[%clk 0:00:02]}  c3 {[%clk 0:00:17]} 50. Ke3 {[%clk 0:00:03]}  c2 {[%clk 0:00:17]} 51. Ke4 {[%clk 0:00:03]}  Rd8 {[%clk 0:00:17]} 52. Ke5 {[%clk 0:00:04]}  c1=Q {[%clk 0:00:16]} 53. Ke4 {[%clk 0:00:03]}  Qc4+ {[%clk 0:00:16]} 54. Kf3 {[%clk 0:00:04]}  Rd3+ {[%clk 0:00:15]} 55. Ke2 {[%clk 0:00:05]}  Qc2+ {[%clk 0:00:16]} 56. Kf1 {[%clk 0:00:04]}  Rd1# {[%clk 0:00:16]} 0-1


[Site "https://www.chess.com"]

[Event "Titled Tuesday Blitz February 15 Early 2022"]
[White "Erigaisi Arjun"]
[Black "Khoroshev, Nikita"]
[WhiteFideId "35009192"]
[BlackFideId "14200287"]
[WhiteElo "2745"]
[BlackElo "2354"]
[Result "1-0"]
[Round "06"]
[TimeControl "180+1"]
[Date "2022.02.15"]
[WhiteClock "0:00:40"]
[BlackClock "0:00:20"]

1. Nh3 {[%clk 0:03:00]}  d5 {[%clk 0:02:59]} 2. d4 {[%clk 0:03:00]}  c5 {[%clk 0:02:58]} 3. e3 {[%clk 0:03:00]}  Nc6 {[%clk 0:02:57]} 4. c3 {[%clk 0:02:58]}  Nf6 {[%clk 0:02:55]} 5. dxc5 {[%clk 0:02:56]}  a5 {[%clk 0:02:51]} 6. Bb5 {[%clk 0:02:55]}  e5 {[%clk 0:02:50]} 7. b4 {[%clk 0:02:55]}  Be7 {[%clk 0:02:48]} 8. Bb2 {[%clk 0:02:53]}  O-O {[%clk 0:02:48]} 9. a3 {[%clk 0:02:54]}  Ne8 {[%clk 0:02:30]} 10. Nd2 {[%clk 0:02:51]}  Nc7 {[%clk 0:02:30]} 11. Be2 {[%clk 0:02:51]}  f5 {[%clk 0:02:28]} 12. f4 {[%clk 0:02:47]}  d4 {[%clk 0:02:26]} 13. Nc4 {[%clk 0:02:39]}  Nb5 {[%clk 0:01:58]} 14. cxd4 {[%clk 0:02:18]}  exd4 {[%clk 0:01:58]} 15. Nb6 {[%clk 0:02:18]}  Bh4+ {[%clk 0:01:34]} 16. g3 {[%clk 0:02:14]}  Qe7 {[%clk 0:01:34]} 17. Bxb5 {[%clk 0:01:52]}  Rd8 {[%clk 0:01:26]} 18. Qb3+ {[%clk 0:01:36]}  Kh8 {[%clk 0:01:22]} 19. O-O {[%clk 0:01:30]}  Be6 {[%clk 0:01:09]} 20. Bc4 {[%clk 0:01:30]}  a4 {[%clk 0:01:09]} 21. Qd3 {[%clk 0:01:22]}  Bxc4 {[%clk 0:00:49]} 22. Nxc4 {[%clk 0:01:23]}  Bf6 {[%clk 0:00:43]} 23. Nd6 {[%clk 0:01:13]}  b6 {[%clk 0:00:33]} 24. exd4 {[%clk 0:01:11]}  bxc5 {[%clk 0:00:32]} 25. bxc5 {[%clk 0:01:12]}  Rab8 {[%clk 0:00:28]} 26. Rae1 {[%clk 0:01:12]}  Qd7 {[%clk 0:00:25]} 27. Bc3 {[%clk 0:01:10]}  Rb3 {[%clk 0:00:25]} 28. Nf2 {[%clk 0:00:49]}  Bxd4 {[%clk 0:00:23]} 29. Bxd4 {[%clk 0:00:47]}  Rxd3 {[%clk 0:00:23]} 30. Nxd3 {[%clk 0:00:48]}  Nxd4 {[%clk 0:00:23]} 31. Ne5 {[%clk 0:00:48]}  Qc7 {[%clk 0:00:19]} 32. Nef7+ {[%clk 0:00:48]}  Kg8 {[%clk 0:00:19]} 33. Nxd8 {[%clk 0:00:49]}  h5 {[%clk 0:00:20]} 34. Re8+ {[%clk 0:00:38]}  Kh7 {[%clk 0:00:20]} 35. N8f7 {[%clk 0:00:39]}  Qc6 {[%clk 0:00:19]} 36. Rh8+ {[%clk 0:00:38]}  Kg6 {[%clk 0:00:20]} 37. Ne5+ {[%clk 0:00:39]}  Kf6 {[%clk 0:00:20]} 38. Nxc6 {[%clk 0:00:40]} 1-0


[Site "https://www.chess.com"]